[Event "Esbjerg Efterår 2021 - Esbjergmesterskabet"]
[Site "Esbjerg, Denmark"]
[Date "2021.10.23"]
[Round "5.10"]
[White "Jensen, Lucas"]
[Black "Vinther, Christoffer"]
[Result "0-1"]
[TimeControl "1.-3. 20 min + 5 sek, 4.-7. 90 min + 30 sek"]
[WhiteElo "1372"]
[BlackElo "1607"]

1. e4 {[%clk 01:30:58]} {[%emt 00:00:01]} c5 {[%clk 01:30:53]} {[%emt
00:00:07]} 2. b3 {[%clk 01:31:17]} {[%emt 00:00:12]} d6 {[%clk 01:30:59]}
{[%emt 00:00:24]} 3. Bb2 {[%clk 01:31:31]} {[%emt 00:00:16]} Nc6 {[%clk
01:31:00]} {[%emt 00:00:29]} 4. Bb5 {[%clk 01:31:00]} {[%emt 00:01:00]} Nf6
{[%clk 01:29:54]} {[%emt 00:01:36]} 5. d3 {[%clk 01:29:44]} {[%emt 00:01:47]}
Bd7 {[%clk 01:29:46]} {[%emt 00:00:37]} 6. Ne2 {[%clk 01:28:22]} {[%emt
00:01:52]} e6 {[%clk 01:29:45]} {[%emt 00:00:31]} 7. O-O {[%clk 01:27:11]}
{[%emt 00:01:42]} Be7 {[%clk 01:29:26]} {[%emt 00:00:48]} 8. Ng3 {[%clk
01:22:36]} {[%emt 00:05:06]} a6 {[%clk 01:29:01]} {[%emt 00:00:55]} 9. Bxc6
{[%clk 01:22:44]} {[%emt 00:00:21]} Bxc6 {[%clk 01:29:16]} {[%emt 00:00:16]} 10.
a4 {[%clk 01:21:24]} {[%emt 00:01:50]} d5 {[%clk 01:29:19]} {[%emt 00:00:27]}
11. Nd2 {[%clk 01:18:03]} {[%emt 00:03:52]} O-O {[%clk 01:25:55]} {[%emt
00:03:53]} 12. f4 {[%clk 01:13:23]} {[%emt 00:05:10]} b5 {[%clk 01:20:50]}
{[%emt 00:05:35]} 13. axb5 {[%clk 01:11:36]} {[%emt 00:02:17]} axb5 {[%clk
01:21:07]} {[%emt 00:00:13]} 14. e5 {[%clk 01:10:50]} {[%emt 00:01:16]} Nd7
{[%clk 01:21:12]} {[%emt 00:00:25]} 15. d4 {[%clk 01:08:18]} {[%emt 00:03:02]}
cxd4 {[%clk 01:16:35]} {[%emt 00:05:07]} 16. Bxd4 {[%clk 01:08:36]} {[%emt
00:00:11]} Bc5 {[%clk 01:16:57]} {[%emt 00:00:08]} 17. Bxc5 {[%clk 01:07:44]}
{[%emt 00:01:23]} Nxc5 {[%clk 01:17:00]} {[%emt 00:00:27]} 18. Ne2 {[%clk
01:05:08]} {[%emt 00:03:06]} d4 {[%clk 01:13:44]} {[%emt 00:03:46]} 19. Rxa8
{[%clk 01:03:26]} {[%emt 00:02:12]} Bxa8 {[%clk 01:13:08]} {[%emt 00:01:06]} 20.
Nf3 {[%clk 01:02:15]} {[%emt 00:01:40]} d3 {[%clk 01:13:07]} {[%emt 00:00:32]}
21. Ned4 {[%clk 01:02:27]} {[%emt 00:00:18]} Qb6 {[%clk 01:09:12]} {[%emt
00:04:24]} 22. cxd3 {[%clk 01:00:35]} {[%emt 00:02:22]} Bxf3 {[%clk 01:06:43]}
{[%emt 00:03:00]} 23. Rxf3 {[%clk 00:58:06]} {[%emt 00:02:58]} Rd8 {[%clk
01:06:49]} {[%emt 00:00:25]} 24. Ne2 {[%clk 00:53:14]} {[%emt 00:05:22]} Nxd3+
{[%clk 01:06:28]} {[%emt 00:00:51]} 25. Kf1 {[%clk 00:53:19]} {[%emt 00:00:25]}
Nxe5 {[%clk 01:05:46]} {[%emt 00:01:12]} 26. Qxd8+ {[%clk 00:49:14]} {[%emt
00:04:34]} Qxd8 {[%clk 01:05:19]} {[%emt 00:00:57]} 27. fxe5 {[%clk 00:49:40]}
{[%emt 00:00:03]} g6 {[%clk 01:02:46]} {[%emt 00:03:04]} 28. Kf2 {[%clk
00:47:01]} {[%emt 00:03:10]} Qd5 {[%clk 00:58:37]} {[%emt 00:04:38]} 29. Re3
{[%clk 00:46:28]} {[%emt 00:01:03]} Qc5 {[%clk 00:58:27]} {[%emt 00:00:40]} 30.
Kg3 {[%clk 00:44:22]} {[%emt 00:02:36]} 0-1

[ePGN "0.1;DGT LiveChess/2.2"]

[Event "Esbjerg Efterår 2021 - Esbjergmesterskabet"]
[Site "Esbjerg, Denmark"]
[Date "2021.10.24"]
[Round "6.1"]
[White "Eriksson, Christian Altenburg"]
[Black "Pedersen, Nicolai Vesterbæk"]
[Result "1-0"]
[TimeControl "1.-3. 20 min + 5 sek, 4.-7. 90 min + 30 sek"]
[WhiteElo "2135"]
[BlackElo "2343"]

1. e4 {[%clk 01:30:58]} {[%emt 00:00:02]} e5 {[%clk 01:30:45]} {[%emt
00:00:15]} 2. Nf3 {[%clk 01:31:22]} {[%emt 00:00:06]} Nf6 {[%clk 01:31:04]}
{[%emt 00:00:11]} 3. Nxe5 {[%clk 01:30:08]} {[%emt 00:01:44]} d6 {[%clk
01:31:23]} {[%emt 00:00:11]} 4. Nf3 {[%clk 01:30:32]} {[%emt 00:00:05]} Nxe4
{[%clk 01:31:44]} {[%emt 00:00:10]} 5. Nc3 {[%clk 01:30:45]} {[%emt 00:00:17]}
Nxc3 {[%clk 01:31:57]} {[%emt 00:00:16]} 6. dxc3 {[%clk 01:31:09]} {[%emt
00:00:08]} Be7 {[%clk 01:31:58]} {[%emt 00:00:28]} 7. Be3 {[%clk 01:31:04]}
{[%emt 00:00:35]} Nd7 {[%emt 00:01:37]} 8. Qd2 {[%clk 01:30:26]} {[%emt
00:01:06]} O-O {[%clk 01:30:40]} {[%emt 00:00:44]} 9. O-O-O {[%clk 01:29:27]}
{[%emt 00:01:28]} c6 {[%clk 01:28:14]} {[%emt 00:02:56]} 10. h4 {[%clk
01:27:04]} {[%emt 00:02:53]} d5 {[%clk 01:24:35]} {[%emt 00:04:09]} 11. Bd3
{[%clk 01:25:03]} {[%emt 00:02:30]} Nc5 {[%clk 01:04:02]} {[%emt 00:21:04]} 12.
Ng5 {[%clk 01:20:53]} {[%emt 00:04:40]} f5 {[%clk 01:00:55]} {[%emt 00:03:37]}
13. Bxc5 {[%clk 01:07:42]} {[%emt 00:13:42]} Bxc5 {[%clk 01:01:13]} {[%emt
00:00:11]} 14. Rde1 {[%clk 01:06:43]} {[%emt 00:01:28]} Qa5 {[%clk 00:51:39]}
{[%emt 00:10:05]} 15. Qe2 {[%clk 01:00:19]} {[%emt 00:06:55]} h6 {[%clk
00:30:03]} {[%emt 00:22:05]} 16. Qh5 {[%clk 00:56:32]} {[%emt 00:04:17]} Bxf2
{[%clk 00:24:03]} {[%emt 00:06:30]} 17. Qg6 {[%clk 00:55:38]} {[%emt 00:01:24]}
hxg5 {[%clk 00:23:21]} {[%emt 00:01:11]} 18. Re7 {[%clk 00:54:42]} {[%emt
00:01:26]} 1-0

[Event "Esbjerg Efterår 2021 - Esbjergmesterskabet"]
[Site "Esbjerg, Denmark"]
[Date "2021.10.24"]
[Round "6.2"]
[White "Rødgaard, John"]
[Black "Bønnelykke, Ole"]
[Result "1-0"]
[TimeControl "1.-3. 20 min + 5 sek, 4.-7. 90 min + 30 sek"]
[WhiteElo "2319"]
[BlackElo "1991"]

1. Nf3 {[%clk 01:30:49]} {[%emt 00:00:09]} c5 {[%clk 01:30:42]} {[%emt
00:00:19]} 2. c4 {[%clk 01:30:53]} {[%emt 00:00:26]} Nc6 {[%clk 01:30:58]}
{[%emt 00:00:14]} 3. d4 {[%clk 01:30:44]} {[%emt 00:00:39]} cxd4 {[%clk
01:31:02]} {[%emt 00:00:26]} 4. Nxd4 {[%clk 01:31:05]} {[%emt 00:00:09]} e5
{[%clk 01:30:08]} {[%emt 00:01:24]} 5. Nb5 {[%clk 01:27:48]} {[%emt 00:03:48]}
a6 {[%clk 01:28:36]} {[%emt 00:02:02]} 6. Nd6+ {[%clk 01:21:21]} {[%emt
00:06:57]} Bxd6 {[%clk 01:28:55]} {[%emt 00:00:11]} 7. Qxd6 {[%clk 01:21:48]}
{[%emt 00:00:02]} Qe7 {[%clk 01:28:57]} {[%emt 00:00:28]} 8. Qd1 {[%clk
01:05:26]} {[%emt 00:16:52]} d6 {[%clk 01:23:39]} {[%emt 00:05:50]} 9. Nc3
{[%clk 01:00:23]} {[%emt 00:05:32]} Be6 {[%clk 01:23:22]} {[%emt 00:00:46]} 10.
e4 {[%clk 00:49:17]} {[%emt 00:11:37]} Nf6 {[%clk 01:16:47]} {[%emt 00:07:05]}
11. f3 {[%clk 00:43:34]} {[%emt 00:06:12]} O-O {[%clk 01:15:03]} {[%emt
00:02:14]} 12. Be3 {[%clk 00:43:10]} {[%emt 00:00:53]} Rac8 {[%clk 01:12:07]}
{[%emt 00:03:27]} 13. Be2 {[%clk 00:36:42]} {[%emt 00:06:58]} Na5 {[%clk
01:11:04]} {[%emt 00:01:33]} 14. b3 {[%clk 00:34:59]} {[%emt 00:02:14]} b5
{[%clk 01:10:13]} {[%emt 00:01:21]} 15. Nd5 {[%clk 00:33:40]} {[%emt 00:01:49]}
Bxd5 {[%clk 01:08:09]} {[%emt 00:02:34]} 16. cxd5 {[%clk 00:33:16]} {[%emt
00:00:53]} Qb7 {[%clk 01:01:53]} {[%emt 00:06:46]} 17. Qd3 {[%clk 00:26:41]}
{[%emt 00:07:05]} Nd7 {[%clk 00:59:07]} {[%emt 00:03:17]} 18. Rc1 {[%clk
00:20:08]} {[%emt 00:07:02]} Rxc1+ {[%clk 00:56:14]} {[%emt 00:03:24]} 19. Bxc1
{[%clk 00:20:36]} {[%emt 00:00:02]} Nc5 {[%clk 00:55:49]} {[%emt 00:00:55]} 20.
Qb1 {[%clk 00:18:24]} {[%emt 00:02:42]} b4 {[%clk 00:55:11]} {[%emt 00:01:08]}
21. Be3 {[%clk 00:18:15]} {[%emt 00:00:38]} Rc8 {[%clk 00:50:17]} {[%emt
00:05:24]} 22. Kf2 {[%clk 00:14:32]} {[%emt 00:04:13]} f5 {[%clk 00:50:03]}
{[%emt 00:00:44]} 23. Rc1 {[%clk 00:13:37]} {[%emt 00:01:25]} f4 {[%clk
00:48:23]} {[%emt 00:02:11]} 24. Bxc5 {[%clk 00:12:24]} {[%emt 00:01:43]} Rxc5
{[%clk 00:38:49]} {[%emt 00:10:03]} 25. Rxc5 {[%clk 00:12:21]} {[%emt
00:00:33]} Qb6 {[%clk 00:38:31]} {[%emt 00:00:50]} 26. Bxa6 {[%clk 00:09:24]}
{[%emt 00:03:25]} Qxc5+ {[%clk 00:35:47]} {[%emt 00:03:13]} 27. Kf1 {[%clk
00:09:41]} {[%emt 00:00:12]} g5 {[%clk 00:34:52]} {[%emt 00:01:27]} 28. Qd1
{[%clk 00:07:19]} {[%emt 00:02:51]} h5 {[%clk 00:33:47]} {[%emt 00:01:36]} 29.
g3 {[%clk 00:06:21]} {[%emt 00:01:29]} Kg7 {[%clk 00:30:54]} {[%emt 00:03:22]}
30. gxf4 {[%clk 00:05:54]} {[%emt 00:00:57]} exf4 {[%clk 00:25:21]} {[%emt
00:06:03]} 31. Qd2 {[%clk 00:05:02]} {[%emt 00:01:22]} Kf6 {[%clk 00:24:11]}
{[%emt 00:01:40]} 32. h4 {[%clk 00:04:58]} {[%emt 00:00:35]} Nb7 {[%clk
00:18:17]} {[%emt 00:06:24]} 33. Bxb7 {[%clk 00:03:11]} {[%emt 00:02:17]} Qb5+
{[%clk 00:18:37]} {[%emt 00:00:10]} 34. Kg2 {[%clk 00:03:25]} {[%emt 00:00:16]}
Qxb7 {[%clk 00:18:44]} {[%emt 00:00:23]} 35. Qd4+ {[%clk 00:03:12]} {[%emt
00:00:43]} Kg6 {[%clk 00:18:50]} {[%emt 00:00:23]} 36. hxg5 {[%clk 00:03:23]}
{[%emt 00:00:19]} Kxg5 {[%clk 00:19:05]} {[%emt 00:00:15]} 37. e5 {[%clk
00:03:40]} {[%emt 00:00:13]} Qg7 {[%clk 00:16:17]} {[%emt 00:03:19]} 38. Qxb4
{[%clk 00:03:16]} {[%emt 00:00:54]} Qxe5 {[%clk 00:14:24]} {[%emt 00:02:23]} 39.
Qd2 {[%clk 00:03:14]} {[%emt 00:00:31]} Kh4 {[%clk 00:13:19]} {[%emt 00:01:36]}
40. b4 {[%clk 00:01:08]} {[%emt 00:02:36]} Qf5 {[%clk 00:12:23]} {[%emt
00:01:26]} 41. b5 {[%clk 00:01:06]} {[%emt 00:00:33]} Qh3+ {[%clk 00:11:57]}
{[%emt 00:00:55]} 42. Kg1 {[%clk 00:01:20]} {[%emt 00:00:15]} Qxf3 {[%clk
00:10:52]} {[%emt 00:01:35]} 43. Qf2+ {[%clk 00:00:50]} {[%emt 00:01:00]} Kg4
{[%clk 00:09:01]} {[%emt 00:02:22]} 44. b6 {[%clk 00:00:50]} {[%emt 00:00:30]}
Qd1+ {[%clk 00:08:18]} {[%emt 00:01:12]} 45. Kh2 {[%clk 00:01:17]} {[%emt
00:00:04]} Qd3 {[%clk 00:06:12]} {[%emt 00:02:35]} 46. a4 {[%clk 00:00:57]}
{[%emt 00:00:51]} h4 {[%clk 00:06:13]} {[%emt 00:00:29]} 47. b7 {[%clk
00:00:38]} {[%emt 00:00:50]} Qb3 {[%clk 00:05:19]} {[%emt 00:01:23]} 48. Qg2+
{[%clk 00:00:53]} {[%emt 00:00:15]} Kh5 {[%clk 00:04:44]} {[%emt 00:01:05]} 49.
Qg7 {[%clk 00:00:58]} {[%emt 00:00:24]} Qc2+ {[%clk 00:04:12]} {[%emt
00:01:02]} 50. Kg1 {[%clk 00:01:08]} {[%emt 00:00:20]} Qb1+ {[%clk 00:03:54]}
{[%emt 00:00:49]} 51. Kf2 {[%clk 00:01:22]} {[%emt 00:00:15]} Qb6+ {[%clk
00:03:58]} {[%emt 00:00:26]} 52. Ke2 {[%clk 00:01:18]} {[%emt 00:00:34]} Qe3+
{[%clk 00:02:46]} {[%emt 00:01:42]} 53. Kd1 {[%clk 00:01:45]} {[%emt 00:00:03]}
Qd3+ {[%clk 00:02:37]} {[%emt 00:00:40]} 54. Kc1 {[%clk 00:01:57]} {[%emt
00:00:19]} Qc4+ {[%clk 00:02:20]} {[%emt 00:00:47]} 55. Kd2 {[%clk 00:01:09]}
{[%emt 00:01:17]} Qb4+ {[%clk 00:02:23]} {[%emt 00:00:27]} 56. Kd3 {[%clk
00:01:07]} {[%emt 00:00:33]} Qb3+ {[%clk 00:02:27]} {[%emt 00:00:26]} 57. Ke4
{[%clk 00:00:59]} {[%emt 00:00:37]} Qxa4+ {[%clk 00:01:53]} {[%emt 00:01:05]}
58. Kf5 {[%clk 00:01:03]} {[%emt 00:00:25]} Qc2+ {[%clk 00:02:00]} {[%emt
00:00:23]} 59. Ke6 {[%clk 00:00:48]} {[%emt 00:00:46]} Qe4+ {[%clk 00:01:43]}
{[%emt 00:00:46]} 60. Kd7 {[%clk 00:00:53]} {[%emt 00:00:25]} Qa4+ {[%clk
00:01:18]} {[%emt 00:00:55]} 61. Kd8 {[%clk 00:01:00]} {[%emt 00:00:24]} Qb5
{[%clk 00:00:50]} {[%emt 00:00:57]} 62. Qc7 {[%clk 00:00:49]} {[%emt 00:00:41]}
Qxd5 {[%clk 00:00:39]} {[%emt 00:00:42]} 63. Qh7+ {[%clk 00:00:55]} {[%emt
00:00:24]} Kg4 {[%clk 00:00:49]} {[%emt 00:00:18]} 64. Qg6+ {[%clk 00:01:02]}
{[%emt 00:00:24]} Kh3 {[%clk 00:00:38]} {[%emt 00:00:42]} 65. b8=Q {[%clk
00:01:24]} {[%emt 00:00:08]} Qa5+ {[%clk 00:00:46]} {[%emt 00:00:22]} 66. Qc7
{[%clk 00:01:23]} {[%emt 00:00:30]} Qxc7+ {[%clk 00:00:53]} {[%emt 00:00:24]}
67. Kxc7 {[%clk 00:01:51]} {[%emt 00:00:02]} f3 {[%clk 00:01:03]} {[%emt
00:00:20]} 68. Qg1 {[%clk 00:01:40]} {[%emt 00:00:40]} d5 {[%clk 00:01:11]}
{[%emt 00:00:23]} 69. Kd6 {[%clk 00:01:58]} {[%emt 00:00:12]} d4 {[%clk
00:01:23]} {[%emt 00:00:18]} 70. Ke5 {[%clk 00:02:13]} {[%emt 00:00:14]} 1-0

[Event "Esbjerg Efterår 2021 - Esbjergmesterskabet"]
[Site "Esbjerg, Denmark"]
[Date "2021.10.24"]
[Round "6.3"]
[White "Jarlnæs, Erik"]
[Black "Medhus, Vitus Bondo"]
[Result "1/2-1/2"]
[TimeControl "1.-3. 20 min + 5 sek, 4.-7. 90 min + 30 sek"]
[WhiteElo "1952"]
[BlackElo "1875"]

1. e4 {[%clk 01:30:46]} {[%emt 00:00:14]} c5 {[%clk 01:30:23]} {[%emt
00:00:37]} 2. f4 {[%clk 01:30:25]} {[%emt 00:00:51]} Nc6 {[%clk 01:30:14]}
{[%emt 00:00:40]} 3. Nf3 {[%clk 01:30:44]} {[%emt 00:00:10]} e6 {[%clk
01:29:34]} {[%emt 00:01:11]} 4. Bb5 {[%clk 01:28:51]} {[%emt 00:02:23]} d5
{[%clk 01:27:12]} {[%emt 00:02:51]} 5. Bxc6+ {[%clk 01:29:02]} {[%emt
00:00:20]} bxc6 {[%clk 01:27:35]} {[%emt 00:00:07]} 6. e5 {[%clk 01:29:27]}
{[%emt 00:00:05]} Ba6 {[%clk 01:27:43]} {[%emt 00:00:22]} 7. d3 {[%clk
01:29:15]} {[%emt 00:00:42]} c4 {[%clk 01:25:46]} {[%emt 00:02:26]} 8. d4
{[%clk 01:24:55]} {[%emt 00:04:50]} Nh6 {[%clk 01:24:05]} {[%emt 00:02:11]} 9.
c3 {[%clk 01:21:43]} {[%emt 00:03:42]} Qb6 {[%clk 01:23:47]} {[%emt 00:00:49]}
10. a4 {[%clk 01:11:33]} {[%emt 00:10:40]} Qa5 {[%clk 01:20:28]} {[%emt
00:03:49]} 11. Na3 {[%clk 00:52:25]} {[%emt 00:19:38]} Bxa3 {[%clk 01:18:04]}
{[%emt 00:02:53]} 12. Rxa3 {[%clk 00:52:38]} {[%emt 00:00:18]} Rb8 {[%clk
01:16:49]} {[%emt 00:01:45]} 13. Kf2 {[%clk 00:48:16]} {[%emt 00:04:52]} O-O
{[%clk 01:11:08]} {[%emt 00:06:11]} 14. h3 {[%clk 00:45:28]} {[%emt 00:03:18]}
Rb7 {[%clk 01:03:08]} {[%emt 00:08:30]} 15. g4 {[%clk 00:44:43]} {[%emt
00:01:15]} Kh8 {[%clk 00:59:59]} {[%emt 00:03:39]} 1/2-1/2

[Event "Esbjerg Efterår 2021 - Esbjergmesterskabet"]
[Site "Esbjerg, Denmark"]
[Date "2021.10.24"]
[Round "6.4"]
[White "Marcussen, Claus"]
[Black "Bekmuhanov, Sauran"]
[Result "1/2-1/2"]
[TimeControl "1.-3. 20 min + 5 sek, 4.-7. 90 min + 30 sek"]
[WhiteElo "1543"]
[BlackElo "1623"]

1. f4 {[%clk 01:30:57]} {[%emt 00:00:01]} d5 {[%clk 01:28:00]} {[%emt
00:03:02]} 2. Nf3 {[%clk 01:31:25]} {[%emt 00:00:01]} c5 {[%clk 01:27:49]}
{[%emt 00:00:41]} 3. e3 {[%clk 01:31:53]} {[%emt 00:00:02]} Nc6 {[%clk
01:28:04]} {[%emt 00:00:16]} 4. d4 {[%clk 01:32:19]} {[%emt 00:00:03]} cxd4
{[%clk 01:27:17]} {[%emt 00:01:17]} 5. exd4 {[%clk 01:32:48]} {[%emt 00:00:02]}
Nf6 {[%clk 01:27:34]} {[%emt 00:00:12]} 6. c3 {[%clk 01:33:15]} {[%emt
00:00:02]} Bf5 {[%clk 01:27:40]} {[%emt 00:00:22]} 7. Bd3 {[%clk 01:33:08]}
{[%emt 00:00:40]} Ne4 {[%clk 01:27:12]} {[%emt 00:00:58]} 8. Qe2 {[%clk
01:33:35]} {[%emt 00:00:03]} e6 {[%clk 01:26:32]} {[%emt 00:01:10]} 9. Nbd2
{[%clk 01:33:09]} {[%emt 00:00:55]} Nxd2 {[%clk 01:24:30]} {[%emt 00:02:33]} 10.
Bxd2 {[%clk 01:31:22]} {[%emt 00:02:17]} Bxd3 {[%clk 01:24:32]} {[%emt
00:00:28]} 11. Qxd3 {[%clk 01:31:49]} {[%emt 00:00:03]} Bd6 {[%clk 01:24:48]}
{[%emt 00:00:14]} 12. O-O {[%clk 01:30:40]} {[%emt 00:01:39]} Qc7 {[%emt
00:05:11]} 13. Rae1 {[%clk 01:26:15]} O-O-O {[%clk 01:25:06]} {[%emt 00:00:25]}
14. f5 {[%clk 01:21:40]} {[%emt 00:05:05]} exf5 {[%clk 01:21:14]} {[%emt
00:04:22]} 15. Qxf5+ {[%clk 01:21:28]} {[%emt 00:00:42]} Kb8 {[%clk 01:21:40]}
{[%emt 00:00:04]} 16. Re2 {[%clk 01:14:16]} {[%emt 00:07:41]} f6 {[%clk
01:17:49]} {[%emt 00:04:22]} 17. Rfe1 {[%clk 01:11:20]} {[%emt 00:03:26]} Qf7
{[%clk 01:12:22]} {[%emt 00:05:57]} 18. g3 {[%clk 01:00:38]} {[%emt 00:11:12]}
Kc7 {[%clk 01:09:30]} {[%emt 00:03:23]} 19. Re6 {[%clk 00:57:54]} {[%emt
00:03:08]} Ne7 {[%clk 01:08:17]} {[%emt 00:01:47]} 20. Qd3 {[%clk 00:52:05]}
{[%emt 00:06:18]} Rhe8 {[%clk 01:04:03]} {[%emt 00:04:45]} 21. c4 {[%clk
00:47:51]} {[%emt 00:04:44]} Be5 {[%clk 00:58:36]} {[%emt 00:05:58]} 22. Rxe7+
{[%clk 00:45:44]} {[%emt 00:02:37]} Rxe7 {[%clk 00:56:50]} {[%emt 00:02:16]} 23.
dxe5 {[%clk 00:45:58]} {[%emt 00:00:17]} dxc4 {[%clk 00:55:37]} {[%emt
00:01:42]} 24. Qc3 {[%clk 00:45:46]} {[%emt 00:00:41]} fxe5 {[%clk 00:39:52]}
{[%emt 00:16:15]} 25. Nxe5 {[%clk 00:43:05]} {[%emt 00:03:11]} Qd5 {[%clk
00:33:43]} {[%emt 00:06:39]} 26. Bf4 {[%clk 00:43:11]} {[%emt 00:00:24]} Kc8
{[%clk 00:26:30]} {[%emt 00:07:45]} 27. Bg5 {[%clk 00:28:39]} {[%emt 00:15:00]}
Qc5+ {[%clk 00:21:51]} {[%emt 00:05:11]} 28. Kf1 {[%clk 00:28:59]} {[%emt
00:00:09]} Rf8+ {[%clk 00:22:02]} {[%emt 00:00:20]} 29. Kg2 {[%clk 00:22:34]}
{[%emt 00:06:54]} Rf2+ {[%clk 00:13:28]} {[%emt 00:09:05]} 30. Kh3 {[%clk
00:22:04]} {[%emt 00:00:58]} Re6 {[%clk 00:13:04]} {[%emt 00:00:55]} 31. Be3
{[%clk 00:22:10]} {[%emt 00:00:24]} Qxe5 {[%clk 00:10:58]} {[%emt 00:02:36]} 32.
Qxe5 {[%clk 00:19:44]} {[%emt 00:02:55]} Rxh2+ {[%clk 00:11:06]} {[%emt
00:00:22]} 33. Kxh2 {[%clk 00:19:37]} {[%emt 00:00:38]} Rxe5 {[%clk 00:11:34]}
34. Bd2 {[%clk 00:19:29]} {[%emt 00:00:37]} Rd5 {[%clk 00:10:30]} {[%emt
00:01:36]} 35. Bc3 {[%clk 00:19:41]} {[%emt 00:00:18]} Rd7 {[%clk 00:10:04]}
{[%emt 00:00:54]} 36. Re4 {[%clk 00:19:22]} {[%emt 00:00:49]} b5 {[%clk
00:10:19]} {[%emt 00:00:16]} 37. a4 {[%clk 00:18:36]} {[%emt 00:01:17]} a6
{[%emt 00:00:22]} 38. axb5 {[%emt 00:00:28]} axb5 {[%clk 00:09:41]} {[%emt
00:00:18]} 39. Re5 {[%clk 00:18:28]} {[%emt 00:00:37]} Rb7 {[%clk 00:09:37]}
{[%emt 00:00:34]} 40. Re8+ {[%clk 00:16:41]} {[%emt 00:02:18]} Kd7 {[%clk
00:09:12]} {[%emt 00:00:56]} 41. Rh8 {[%clk 00:16:49]} {[%emt 00:00:21]} Ke6
{[%clk 00:06:14]} {[%emt 00:03:28]} 42. Rxh7 {[%clk 00:16:45]} {[%emt
00:00:33]} b4 {[%clk 00:05:06]} {[%emt 00:01:39]} 43. Bxg7 {[%clk 00:11:33]}
{[%emt 00:05:42]} Kf5 {[%clk 00:03:39]} {[%emt 00:01:58]} 44. Kh3 {[%clk
00:08:32]} {[%emt 00:03:29]} c3 {[%clk 00:03:33]} {[%emt 00:00:35]} 45. bxc3
{[%clk 00:06:44]} {[%emt 00:02:20]} b3 {[%clk 00:03:42]} {[%emt 00:00:21]} 46.
c4 {[%clk 00:05:05]} {[%emt 00:02:09]} Kg6 {[%clk 00:03:39]} {[%emt 00:00:32]}
47. Rh4 {[%clk 00:02:37]} {[%emt 00:02:57]} Kxg7 {[%clk 00:03:12]} {[%emt
00:00:58]} 48. Rg4+ {[%clk 00:02:10]} {[%emt 00:00:57]} Kf6 {[%clk 00:03:28]}
{[%emt 00:00:14]} 49. Rf4+ {[%clk 00:02:35]} {[%emt 00:00:06]} Ke5 {[%clk
00:03:46]} {[%emt 00:00:12]} 50. Rf1 {[%clk 00:03:03]} {[%emt 00:00:02]} Kd4
{[%clk 00:03:45]} {[%emt 00:00:31]} 51. c5 {[%clk 00:02:12]} {[%emt 00:01:20]}
b2 {[%clk 00:03:30]} {[%emt 00:00:46]} 52. Rb1 {[%clk 00:02:12]} {[%emt
00:00:30]} Kxc5 {[%clk 00:03:52]} {[%emt 00:00:08]} 53. g4 {[%clk 00:02:21]}
{[%emt 00:00:21]} Kd4 {[%clk 00:04:05]} {[%emt 00:00:17]} 54. g5 {[%clk
00:02:42]} {[%emt 00:00:09]} Ke5 {[%clk 00:04:02]} {[%emt 00:00:32]} 55. Kg4
{[%clk 00:02:45]} {[%emt 00:00:28]} Ke6 {[%clk 00:03:01]} {[%emt 00:01:31]} 56.
Kf4 {[%clk 00:01:55]} {[%emt 00:01:20]} Kd5 {[%clk 00:02:23]} {[%emt 00:01:08]}
57. g6 {[%clk 00:01:34]} {[%emt 00:00:50]} Kc4 {[%clk 00:02:27]} {[%emt
00:00:27]} 58. g7 {[%clk 00:01:19]} {[%emt 00:00:45]} 1/2-1/2